fUST/lending_fUST_20260120
["ID","MTS","AMOUNT","RATE_DAILY","PERIOD"]
[402808617,1768912245950,-500.0,0.00010758,2]
[402808618,1768912245959,-500.0,0.00010758,2]
[402808619,1768912245969,-500.0,0.00010758,2]
[402808620,1768912245978,-500.0,0.00010758,2]
[402808621,1768912245987,-500.0,0.00010758,2]
[402808622,1768912245996,-500.0,0.00010758,2]
[402808623,1768912246005,-616.55528954,0.00010758,2]
[402808624,1768912246015,-500.0,0.00010758,2]
[402808625,1768912246024,-500.0,0.00010758,2]
[402808626,1768912246041,-500.0,0.00010758,2]
[402808627,1768912246054,-612.95470859,0.00010758,2]
[402808628,1768912246064,-500.0,0.00010758,2]
[402808629,1768912246074,-500.0,0.00010758,2]
[402808630,1768912246083,-500.0,0.00010758,2]
[402808631,1768912246092,-515.71520407,0.00010758,2]
[402808632,1768912246102,-500.0,0.00010758,2]
[402808633,1768912246112,-500.0,0.00010758,2]
[402808634,1768912246121,-500.0,0.00010758,2]
[402808635,1768912246131,-500.0,0.00010758,2]
[402808636,1768912246141,-500.0,0.00010758,2]
[402808637,1768912246155,-500.0,0.00010758,2]
[402808638,1768912246165,-500.0,0.00010758,2]
[402808639,1768912246174,-500.0,0.00010758,2]
[402808640,1768912246184,-500.0,0.00010758,2]
[402808641,1768912246194,-500.0,0.00010758,2]
[402808642,1768912246203,-111.46993452,0.00010758,2]
[402808644,1768912344966,500.0,0.00027397,120]
[402808645,1768912345192,500.0,0.00027397,120]
[402808646,1768912345444,500.0,0.00027397,120]
[402808647,1768912345753,500.0,0.00027397,120]
[402808648,1768912346005,500.0,0.00027397,120]
[402808649,1768912346237,500.0,0.00027397,120]
[402808650,1768912346460,282.72,0.00027397,120]
[402808651,1768912670571,500.0,0.00027397,120]
[402808652,1768912670787,500.0,0.00027397,120]
[402808653,1768912764087,500.0,0.00027397,120]
[402808654,1768912825590,500.0,0.00027397,120]
[402808655,1768912825817,500.0,0.00027397,120]
[402808656,1768912826055,648.35428083,0.00027397,120]
[402808660,1768912995271,1029.07658551,2e-07,10]
[402808661,1768913131314,-228.9712961,0.00010652,2]
[402808662,1768913131340,-187.62255573,0.00010652,2]
[402808663,1768913131366,-401.05427535,0.00010659,2]
[402808664,1768913131386,-228.9712961,0.00010726,2]
[402808665,1768913131397,-187.62255573,0.00010726,2]
[402808666,1768913131409,-83.40614817,0.00010726,2]
[402808667,1768913131418,-317.64812718,0.00010726,2]
[402808668,1768913131438,-83.62496485,0.00010726,2]
[402808669,1768913145852,-168.72690797,0.00010726,2]
[402808670,1768913145879,-181.15442592,0.00010739,2]
[402808671,1768913145892,-117.8854594,0.00010739,2]
[402808672,1768913145901,-50.84144857,0.0001075,2]
[402808673,1768913145912,-249.15855143,0.0001075,2]
[402808674,1768913145921,-49.88133389,0.00010751,2]
[402808676,1768913316409,500.0,0.00027397,120]
[402808677,1768913316650,500.0,0.00027397,120]
[402808678,1768913316895,500.0,0.00027397,120]
[402808679,1768913317130,500.0,0.00027397,120]
[402808714,1768913437967,-171.78465216,0.00010551,2]
[402808716,1768913437977,-340.83334784,0.00010551,2]
[402808727,1768913438075,-272.92653489,0.00010551,2]
[402808729,1768913438085,-500.0,0.00010551,2]
[402808731,1768913438095,-500.0,0.00010551,2]
[402808733,1768913438104,-500.0,0.00010551,2]
[402808735,1768913438114,-414.42876531,0.00010551,2]
[402808737,1768913438123,-500.0,0.00010551,2]
[402808739,1768913438132,-500.0,0.00010551,2]
[402808741,1768913438142,-500.0,0.00010551,2]
[402808743,1768913438151,-427.37480015,0.00010551,2]
[402808745,1768913438161,-500.0,0.00010551,2]
[402808747,1768913438170,-500.0,0.00010551,2]
[402808749,1768913438180,-500.0,0.00010551,2]
[402808751,1768913438189,-500.0,0.00010551,2]
[402808752,1768913438199,-500.0,0.00010551,2]
[402808755,1768913438209,-500.0,0.00010551,2]
[402808756,1768913438218,-500.0,0.00010551,2]
[402808759,1768913438228,-500.0,0.00010551,2]
[402808760,1768913438238,-500.0,0.00010551,2]
[402808763,1768913438247,-500.0,0.00010551,2]
[402808765,1768913438257,-500.0,0.00010551,2]
[402808767,1768913438266,-500.0,0.00010551,2]
[402808768,1768913438275,-500.0,0.00010551,2]
[402808771,1768913438285,-2185528.67159592,0.00010552,2]
[402808773,1768913438294,-300.0,0.0001065,2]
[402808774,1768913438303,-1000000.0,0.00010652,2]
[402808776,1768913438313,-500.0,0.00010726,2]
[402808778,1768913438322,-293.05908761,0.00010752,2]
[402808780,1768913438332,-158.327138,0.00010752,2]
[402808782,1768913438342,-500.0,0.00010752,2]
[402808785,1768913438352,-1957.856,0.00010752,2]
[402808787,1768913438361,-174.25411433,0.00010752,2]
[402808789,1768913438370,-2000.0,0.00010752,2]
[402808791,1768913438379,-2000.0,0.00010752,2]
[402808792,1768913438389,-250.0,0.00010752,2]
[402808795,1768913438399,-2000.0,0.00010752,2]
[402808797,1768913438408,-2000.0,0.00010752,2]
[402808798,1768913438417,-279.35522609,0.00010752,2]
[402808801,1768913438427,-151.0,0.00010752,2]
[402808802,1768913438436,-2000.0,0.00010752,2]
[402808804,1768913438445,-151.0,0.00010752,2]
[402808806,1768913438455,-2000.0,0.00010752,2]
[402808809,1768913438464,-151.0,0.00010752,2]
[402808810,1768913438474,-151.0,0.00010752,2]
[402808813,1768913438483,-692.04553162,0.00010752,2]
[402808815,1768913438495,-151.0,0.00010752,2]
[402808816,1768913438504,-250.0,0.00010752,2]
[402808819,1768913438513,-151.0,0.00010752,2]
[402808820,1768913438522,-250.0,0.00010752,2]
[402808822,1768913438535,-151.0,0.00010752,2]
[402808825,1768913438544,-250.0,0.00010752,2]
[402808827,1768913438554,-151.0,0.00010752,2]
[402808828,1768913438563,-250.0,0.00010752,2]
[402808831,1768913438574,-151.0,0.00010752,2]
[402808833,1768913438584,-162.380719,0.00010752,2]
[402808835,1768913438593,-250.0,0.00010752,2]
[402808837,1768913438607,-250.0,0.00010752,2]
[402808839,1768913438625,-151.0,0.00010752,2]
[402808841,1768913438636,-250.0,0.00010752,2]
[402808843,1768913438647,-151.0,0.00010752,2]
[402808845,1768913438656,-250.0,0.00010752,2]
[402808847,1768913438670,-250.0,0.00010752,2]
[402808849,1768913438687,-250.0,0.00010752,2]
[402808851,1768913438698,-151.0,0.00010752,2]
[402808853,1768913438708,-204.47905083,0.00010752,2]
[402808876,1768913438912,-250.0,0.00010752,2]
[402808879,1768913438936,-162.380719,0.00010752,2]
[402808881,1768913438946,-151.0,0.00010752,2]
[402808883,1768913438955,-250.0,0.00010752,2]
[402808885,1768913438965,-168.3888056,0.00010752,2]
[402808887,1768913438975,-151.0,0.00010752,2]
[402808889,1768913438984,-174.61919141,0.00010752,2]
[402808891,1768913438993,-250.0,0.00010752,2]
[402808893,1768913439004,-151.0,0.00010752,2]
[402808895,1768913439013,-181.08010149,0.00010752,2]
[402808897,1768913439023,-250.0,0.00010752,2]
[402808899,1768913439033,-151.0,0.00010752,2]
[402808901,1768913439043,-187.78006525,0.00010752,2]
[402808903,1768913439052,-194.72792766,0.00010752,2]
[402808905,1768913439062,-250.0,0.00010752,2]
[402808907,1768913439071,-250.0,0.00010752,2]
[402808909,1768913439080,-2150.738,0.00010752,2]
[402808911,1768913439089,-250.0,0.00010752,2]
[402808913,1768913439099,-250.0,0.00010752,2]
[402808915,1768913439109,-2000.0,0.00010752,2]
[402808917,1768913439119,-250.0,0.00010752,2]
[402808919,1768913439128,-1507.19234385,0.00010752,2]
[402808921,1768913439138,-250.0,0.00010752,2]
[402808923,1768913439148,-151.0,0.00010752,2]
[402808925,1768913439157,-151.0,0.00010752,2]
[402808927,1768913439166,-151.0,0.00010752,2]
[402808929,1768913439176,-151.0,0.00010752,2]
[402808931,1768913439185,-201.93286099,0.00010752,2]
[402808933,1768913439194,-151.0,0.00010752,2]
[402808935,1768913439203,-151.0,0.00010752,2]
[402808937,1768913439213,-151.0,0.00010752,2]
[402808939,1768913439223,-151.0,0.00010752,2]
[402808941,1768913439232,-151.0,0.00010752,2]
[402808943,1768913439242,-151.0,0.00010752,2]
[402808945,1768913439252,-209.40437684,0.00010752,2]
[402808947,1768913439261,-151.0,0.00010752,2]
[402808949,1768913439270,-151.0,0.00010752,2]
[402808951,1768913439279,-151.0,0.00010752,2]
[402808953,1768913439288,-217.15233878,0.00010752,2]
[402808955,1768913439297,-151.0,0.00010752,2]
[402808957,1768913439307,-151.0,0.00010752,2]
[402808959,1768913439316,-225.18697532,0.00010752,2]
[402808961,1768913439325,-151.0,0.00010752,2]
[402808963,1768913439334,-151.0,0.00010752,2]
[402808965,1768913439344,-233.51889341,0.00010752,2]
[402808967,1768913439353,-151.0,0.00010752,2]
[402808969,1768913439362,-242.15909246,0.00010752,2]
[402808971,1768913439372,-151.0,0.00010752,2]
[402808973,1768913439380,-251.11897888,0.00010752,2]
[402808975,1768913439389,-151.0,0.00010752,2]
[402808976,1768913439400,-260.4103811,0.00010752,2]
[402808979,1768913439420,-151.0,0.00010752,2]
[402808981,1768913439430,-152.0,0.00010755,2]
[402808983,1768913439439,-152.0,0.00010755,2]
[402808985,1768913439448,-152.0,0.00010755,2]
[402808987,1768913439458,-152.0,0.00010755,2]
[402808989,1768913439466,-152.0,0.00010755,2]
[402808991,1768913439475,-172.8246741,0.00010758,2]
[402808993,1768913439484,-15259.4382028,0.00010758,2]
[402808995,1768913439493,-151.0,0.00010758,2]
[402808997,1768913439503,-151.0,0.00010758,2]
[402808998,1768913439512,-151.0,0.00010758,2]
[402809000,1768913439520,-191.2891415,0.00010758,2]
[402809002,1768913439530,-153.6219331,0.00010758,2]
[402809004,1768913439543,-151.0,0.00010759,2]
[402809006,1768913439552,-151.0,0.00010759,2]
[402809008,1768913439561,-151.0,0.00010759,2]
[402809010,1768913439570,-348.0,0.00010759,2]
[402809012,1768913439581,-348.0,0.00010759,2]
[402809015,1768913439594,-153.30769887,0.00010759,2]
[402809017,1768913439605,-348.0,0.00010759,2]
[402809019,1768913439622,-270.2703129,0.00010759,2]
[402809021,1768913439631,-2030.296672,0.00010807,2]
[402809023,1768913439640,-2105.41764886,0.00010862,2]
[402809025,1768913439649,-500.0,0.00010863,2]
[402809027,1768913439659,-2183.31810187,0.00010917,2]
[402809029,1768913439669,-155.157,0.00010931,2]
[402809031,1768913439678,-151.0,0.00010932,2]
[402809033,1768913439687,-151.0,0.00010932,2]
[402809035,1768913439697,-151.0,0.00010972,2]
[402809037,1768913439707,-151.0,0.00010972,2]
[402809039,1768913439716,-2264.10087164,0.00010972,2]
[402809041,1768913439725,-205.42555031,0.00011,2]
[402809043,1768913439740,-500.0,0.00011,2]
[402809045,1768913439749,-284.24861094,0.00011,2]
[402809047,1768913439759,-2347.87260389,0.00011027,2]
[402809049,1768913439768,-2105.78857285,0.00011082,2]
[402809051,1768913439778,-182.52481675,0.00011137,2]
[402809053,1768913439787,-159.96825339,0.00011137,2]
[402809055,1768913439796,-500.0,0.00011137,2]
[402809057,1768913439806,-266.84280402,0.00011137,2]
[402809059,1768913439815,-230.0,0.00011137,2]
[402809061,1768913439824,-271.89378748,0.00011274,2]
[402809063,1768913439834,-500.0,0.00011274,2]
[402809065,1768913439843,-305.2005618,0.000113,2]
[402809067,1768913439853,-779.0,0.000113,2]
[402809069,1768913439862,-2230.315306,0.000113,2]
[402809071,1768913439871,-155.65218958,0.00011411,2]
[402809074,1768913439881,-250.0,0.00011411,2]
[402809076,1768913439890,-500.0,0.00011411,2]
[402809078,1768913439899,-250.0,0.00011411,2]
[402809080,1768913439909,-179.63963847,0.00011411,2]
[402809081,1768913439919,-151.0,0.00011411,2]
[402809082,1768913439928,-151.0,0.00011411,2]
[402809083,1768913439938,-500.0,0.00011548,2]
[402809085,1768913439947,-1334.61496379,0.00011562,2]
[402809086,1768913439956,-1041.66666667,0.00011618,2]
[402809087,1768913439966,-495.0,0.00011685,2]
[402809088,1768913439976,-420.0,0.00011708,2]
[402809089,1768913439985,-800.0,0.00011771,2]
[402809090,1768913439995,-2312.83697232,0.00011848,2]
[402809092,1768913440005,-200.0,0.00011852,2]
[402809093,1768913440015,-800.0,0.00011882,2]
[402809094,1768913440024,-15259.4382028,0.00011965,2]
[402809095,1768913440033,-191.2891415,0.00011972,2]
[402809096,1768913440042,-800.0,0.00012001,2]
[402809097,1768913440052,-1368.0,0.00012009,2]
[402809098,1768913440061,-2148.0,0.00012009,2]
[402809099,1768913440070,-629.0,0.00012009,2]
[402809100,1768913440079,-800.0,0.00012012,2]
[402809101,1768913440088,-411.53599698,0.00012018,2]
[402809102,1768913440097,-172.8246741,0.00012033,2]
[402809103,1768913440107,-401.05427531,0.00012129,2]
[402809104,1768913440116,-281.0,0.000122,2]
[402809105,1768913440126,-1599.0,0.00012247,4]
[402809106,1768913440135,-1867.861,0.00012329,2]
[402809107,1768913440144,-821.36,0.00012329,2]
[402809108,1768913440153,-684.46,0.00012329,2]
[402809109,1768913440162,-570.39,0.00012329,2]
[402809110,1768913440171,-475.32,0.00012329,2]
[402809111,1768913440181,-396.1,0.00012329,2]
[402809112,1768913440190,-330.09,0.00012329,2]
[402809113,1768913440199,-275.07,0.00012329,2]
[402809114,1768913440208,-229.23,0.00012329,2]
[402809115,1768913440219,-191.02,0.00012329,2]
[402809116,1768913440228,-159.18,0.00012329,2]
[402809117,1768913440239,-795.95,0.00012329,2]
[402809118,1768913440251,-2398.4119403,0.00012396,2]
[402809119,1768913440260,-200.995,0.00012564,2]
[402809120,1768913440270,-232.635,0.00012564,2]
[402809121,1768913440282,-244.298,0.00012564,2]
[402809122,1768913440291,-250.0,0.00012564,2]
[402809123,1768913440300,-261.711,0.00012564,2]
[402809124,1768913440309,-200.096,0.00012564,2]
[402809125,1768913440318,-267.778,0.00012564,2]
[402809126,1768913440327,-160.0,0.00012598,3]
[402809127,1768913440336,-336.0,0.00012661,2]
[402809128,1768913440346,-336.0,0.00012699,2]
[402809129,1768913440356,-345.80972338,0.00012752,2]
[402809130,1768913440368,-336.0,0.00012761,2]
[402809131,1768913440377,-336.0,0.00012786,2]
[402809132,1768913440387,-336.0,0.00012807,2]
[402809133,1768913440397,-336.0,0.00012824,2]
[402809134,1768913440406,-336.0,0.00012827,2]
[402809135,1768913440417,-336.0,0.0001283,2]
[402809136,1768913440426,-336.0,0.00012844,2]
[402809138,1768913440437,-336.0,0.00012853,2]
[402809139,1768913440447,-401.05427531,0.00012864,2]
[402809141,1768913440459,-270.0,0.0001287,2]
[402809143,1768913440469,-336.0,0.00012881,2]
[402809144,1768913440479,-336.0,0.00012882,2]
[402809146,1768913440488,-336.0,0.00012898,2]
[402809147,1768913440499,-2487.15318209,0.00012944,2]
[402809148,1768913440508,-336.0,0.00012975,2]
[402809149,1768913440517,-336.0,0.00012994,2]
[402809150,1768913440527,-1000.0,0.00013,2]
[402809151,1768913440540,-500.0,0.00013,2]
[402809152,1768913440549,-336.0,0.00013009,2]
[402809153,1768913440558,-336.0,0.00013051,2]
[402809155,1768913440568,-336.0,0.00013061,2]
[402809157,1768913440578,-336.0,0.00013065,2]
[402809159,1768913440587,-336.0,0.00013079,2]
[402809160,1768913440596,-336.0,0.00013104,2]
[402809162,1768913440605,-336.0,0.00013114,2]
[402809164,1768913440615,-336.0,0.00013127,2]
[402809165,1768913440624,-336.0,0.00013135,2]
[402809166,1768913440633,-336.0,0.00013163,2]
[402809167,1768913440642,-15259.4382028,0.00013171,2]
[402809168,1768913440651,-191.2891415,0.00013186,2]
[402809169,1768913440661,-500.0,0.00013273,2]
[402809170,1768913440670,-500.0,0.00013273,2]
[402809171,1768913440680,-455.9656943,0.00013273,2]
[402809172,1768913440689,-500.0,0.00013273,2]
[402809173,1768913440699,-213.38797913,0.00013273,2]
[402809174,1768913440708,-172.8246741,0.00013308,2]
[402809175,1768913440718,-169.56631138,0.00013425,2]
[402809176,1768913440727,-151.0,0.00013491,2]
[402809177,1768913440736,-2579.17784983,0.00013492,2]
[402809178,1768913440745,-298.771,0.00013562,2]
[402809179,1768913440754,-169.56631138,0.00013589,2]
[402809180,1768913440763,-401.05427531,0.00013599,2]
[402809181,1768913440773,-288.2,0.000136,2]
[402809182,1768913440782,-3545.279206,0.00013673,2]
[402809183,1768913440792,-12593.30911,0.00013673,2]
[402809184,1768913440801,-4397.938337,0.00013673,2]
[402809185,1768913440810,-311.44191056,0.00013673,2]
[402809186,1768913440819,-5436.03631,0.00013685,2]
[402809187,1768913440828,-6067.23512,0.00013685,2]
[402809188,1768913440837,-22458.037245,0.00013685,2]
[402809189,1768913440846,-8989.749284,0.00013685,2]
[402809190,1768913440855,-5823.973152,0.00013685,2]
[402809191,1768913440864,-6584.382755,0.00013699,7]
[402809192,1768913440873,-26306.607898,0.00013699,7]
[402809193,1768913440880,-2922.830452,0.00013699,7]
[402809194,1768913440889,-6480.46069,0.00013699,7]
[402809195,1768913440898,-3970.8556316,0.00013699,2]
[402809196,1768913440908,-1000.0,0.00013699,2]
[402809197,1768913440918,-1013.0282973,0.00013699,2]
[402809198,1768913440928,-1411.562776,0.00013699,2]
[402809199,1768913440939,-3900.738353,0.00013699,7]
[402809200,1768913440949,-500.0,0.00013699,2]
[402809201,1768913440959,-3919.178282,0.00013699,7]
[402809202,1768913440971,-8962.292296,0.00013699,7]
[402809203,1768913440982,-3731.15347,0.00013699,7]
[402809204,1768913440993,-505.74425275,0.00013699,2]
[402809205,1768913441004,-503.09819727,0.00013699,2]
[402809206,1768913441014,-500.0,0.00013699,2]
[402809207,1768913441024,-502.22217632,0.00013699,2]
[402809208,1768913441036,-500.0,0.00013699,2]
[402809209,1768913441046,-500.0,0.00013699,2]
[402809210,1768913441058,-302.85943076,0.00013699,2]
[402809211,1768913441068,-500.0,0.00013699,2]
[402809212,1768913441077,-585.15540137,0.00013699,2]
[402809213,1768913441087,-500.0,0.00013699,2]
[402809214,1768913441096,-504.10954012,0.00013699,2]
[402809215,1768913441105,-9391.672898,0.00013699,7]
[402809216,1768913441115,-500.0,0.00013699,2]
[402809217,1768913441124,-500.0,0.00013699,2]
[402809218,1768913441134,-503.05052552,0.00013699,2]
[402809219,1768913441143,-2067.008084,0.00013699,7]
[402809220,1768913441153,-11353.159273,0.00013699,7]
[402809221,1768913441162,-5969.052112,0.00013699,7]
[402809222,1768913441171,-3776.61725,0.00013699,7]
[402809223,1768913441180,-200.0,0.00013699,2]
[402809224,1768913441190,-3781.410784,0.00013699,7]
[402809225,1768913441200,-10055.60788397,0.00013699,7]
[402809226,1768913441209,-500.0,0.00013699,2]
[402809227,1768913441218,-500.0,0.00013699,2]
[402809228,1768913441228,-242.41164027,0.00013699,2]
[402809229,1768913441238,-500.0,0.00013699,2]
[402809230,1768913441248,-4477.46331421,0.000137,3]
[402809231,1768913441256,-6254.94723018,0.000137,3]
[402809232,1768913441265,-38000.0,0.000137,3]
[402809233,1768913441274,-8701.07333003,0.000137,3]
[402809234,1768913441284,-475.0,0.00013726,2]
[402809235,1768913441293,-500.0,0.00013736,2]
[402809236,1768913441302,-500.0,0.00013738,2]
[402809237,1768913441312,-205.28265895,0.00013774,2]
[402809238,1768913441322,-10000.0,0.00013775,2]
[402809239,1768913441332,-10000.0,0.00013775,2]
[402809240,1768913441341,-10000.0,0.00013775,2]
[402809241,1768913441352,-2447.61,0.00013775,2]
[402809242,1768913441360,-201.93286099,0.00013781,2]
[402809243,1768913441371,-169.56631138,0.00013781,30]
[402809244,1768913441380,-10000.0,0.00013803,2]
[402809246,1768913441390,-1000.0,0.00013821,2]
[402809248,1768913441400,-1000.0,0.00013821,2]
[402809249,1768913441409,-1000.0,0.00013821,2]
[402809250,1768913441418,-1675.951314,0.00013843,28]
[402809251,1768913441427,-160.0,0.00013847,4]
[402809252,1768913441437,-160.97220368,0.00013847,5]
[402809253,1768913441447,-169.56631138,0.00013945,30]
[402809254,1768913441456,-1675.951314,0.00013987,30]
[402809255,1768913441465,-100000.0,0.0001399,2]
[402809256,1768913441474,-1000.0,0.00014,2]
[402809257,1768913441483,-115727.8338,0.00014,2]
[402809258,1768913441492,-3608.22577453,0.00014,7]
[402809259,1768913441501,-2674.60743027,0.0001404,2]
[402809260,1768913441510,-1675.951314,0.00014131,30]
[402809261,1768913441519,-569.34649932,0.00014247,2]
[402809262,1768913441529,-1000.0,0.00014247,2]
[402809263,1768913441541,-208.53826736,0.00014247,2]
[402809264,1768913441550,-500.44782323,0.00014247,2]
[402809265,1768913441559,-328.79744204,0.00014247,2]
[402809266,1768913441568,-1000.0,0.00014247,2]
[402809267,1768913441578,-1000.0,0.00014247,2]
[402809268,1768913441587,-250.0,0.00014247,2]
[402809269,1768913441596,-1675.951314,0.00014274,30]
[402809270,1768913441606,-209.40437684,0.00014329,2]
[402809271,1768913441615,-1500.0,0.00014368,2]
[402809272,1768913441625,-1500.0,0.00014368,2]
[402809273,1768913441635,-1500.0,0.00014368,2]
[402809274,1768913441643,-15259.4382028,0.00014378,2]
[402809275,1768913441652,-191.2891415,0.000144,2]
[402809276,1768913441661,-1675.951314,0.00014418,30]
[402809277,1768913441671,-5000.0,0.0001451,2]
[402809278,1768913441680,-172.8246741,0.00014584,2]
[402809279,1768913441690,-2773.56790519,0.00014588,2]
[402809280,1768913441699,-398.56035915,0.00014752,2]
[402809281,1768913441708,-160.49,0.00014787,2]
[402809282,1768913441717,-1500.0,0.00014795,2]
[402809283,1768913441726,-1005.23507855,0.00014795,2]
[402809284,1768913441735,-1500.0,0.00014795,2]
[402809285,1768913441744,-150.3597766,0.00014795,2]
[402809287,1768913441753,-5000.0,0.00014838,2]
[402809288,1768913441762,-217.15233878,0.00014877,2]
[402809289,1768913441772,-595.32559249,0.000149,2]
[402809290,1768913441781,-2000.0,0.00014916,2]
[402809291,1768913441791,-2000.0,0.00014916,2]
[402809292,1768913441801,-2000.0,0.00014916,2]
[402809293,1768913441810,-5000.0,0.00014953,2]
[402809294,1768913441819,-151.09279794,0.00015,2]
[402809295,1768913441827,-5000.0,0.00015,2]
[402809296,1768913441836,-1000.0,0.00015,2]
[402809297,1768913441846,-655.32,0.00015,2]
[402809298,1768913441855,-3545.59172598,0.00015,2]
[402809299,1768913441864,-1500.0,0.00015,2]
[402809300,1768913441873,-760.57681954,0.00015,2]
[402809301,1768913441882,-500.0,0.00015,2]
[402809302,1768913441891,-1368.0,0.00015009,2]
[402809303,1768913441900,-2148.0,0.00015009,2]
[402809304,1768913441909,-629.0,0.00015009,2]
[402809305,1768913441918,-556.426707,0.00015068,2]
[402809306,1768913441928,-2876.18991768,0.00015136,2]
[402809307,1768913441937,-151.0,0.000153,2]
[402809308,1768913441946,-2000.0,0.00015342,2]
[402809309,1768913441955,-2000.0,0.00015342,2]
[402809310,1768913441964,-543.86435694,0.000154,2]
[402809311,1768913441972,-500.0,0.000154,7]
[402809312,1768913441981,-500.0,0.000154,2]
[402809313,1768913441990,-312.48,0.000154,7]
[402809314,1768913441999,-320.41624479,0.00015425,2]
[402809315,1768913442008,-2500.0,0.00015464,2]
[402809316,1768913442017,-2500.0,0.00015464,2]
[402809317,1768913442027,-972.13320587,0.00015464,2]
[402809318,1768913442036,-10000.0,0.000155,2]
[402809319,1768913442045,-5090.20924766,0.00015525,2]
[402809320,1768913442053,-432.2326821,0.00015555,2]
[402809321,1768913442063,-2982.60894464,0.00015684,2]
[402809322,1768913442071,-5098.57636036,0.00015699,2]
[402809323,1768913442080,-5000.0,0.00015699,2]
[402809324,1768913442089,-5000.0,0.00015699,2]
[402809325,1768913442098,-8775.9118974,0.00015703,2]
[402809326,1768913442108,-5000.0,0.00015703,2]
[402809327,1768913442117,-5000.0,0.00015703,2]
[402809328,1768913442127,-5000.0,0.00015703,2]
[402809329,1768913442136,-5000.0,0.00015703,2]
[402809330,1768913442145,-1477.199669,0.00015723,7]
[402809331,1768913442154,-5247.212129,0.00015723,7]
[402809332,1768913442162,-1832.474307,0.00015723,7]
[402809333,1768913442171,-2265.015129,0.00015738,7]
[402809334,1768913442180,-2528.014633,0.00015738,7]
[402809335,1768913442189,-9357.515518,0.00015738,7]
[402809336,1768913442199,-3745.728868,0.00015738,7]
[402809337,1768913442208,-2426.65548,0.00015738,7]
[402809338,1768913442219,-3913.19704,0.00015753,7]
[402809339,1768913442228,-2487.105046,0.00015754,7]
[402809340,1768913442237,-1573.590521,0.00015754,7]
[402809341,1768913442246,-2508.10450039,0.0001589,2]
[402809342,1768913442255,-2500.0,0.0001589,2]
[402809343,1768913442265,-58763.2804087,0.00015901,3]
[402809344,1768913442274,-4577.72328714,0.00016,2]
[402809345,1768913442283,-4032.0,0.00016,2]
[402809346,1768913442293,-216.02013689,0.00016,2]
[402809347,1768913442302,-1000.0,0.00016,16]
[402809348,1768913442312,-1007.18254323,0.00016,2]
[402809349,1768913442321,-3000.0,0.00016,2]
[402809350,1768913442331,-3000.0,0.0001601,2]
[402809351,1768913442341,-3011.40916233,0.00016012,2]
[402809352,1768913442351,-2893.65388347,0.00016012,2]
[402809353,1768913442361,-3000.0,0.0001602,2]
[402809354,1768913442371,-3000.0,0.0001603,2]
[402809355,1768913442380,-3000.0,0.0001604,2]
[402809356,1768913442390,-3000.0,0.0001605,2]
[402809357,1768913442399,-3000.0,0.0001606,2]
[402809358,1768913442408,-3000.0,0.0001607,2]
[402809359,1768913442418,-3000.0,0.0001608,2]
[402809360,1768913442428,-3000.0,0.0001609,2]
[402809361,1768913442437,-3000.0,0.000161,2]
[402809362,1768913442446,-3000.0,0.0001611,2]
[402809365,1768913442597,-3000.0,0.0001612,2]
[402809366,1768913442608,-3000.0,0.0001613,2]
[402809367,1768913442617,-3000.0,0.0001614,2]
[402809368,1768913442626,-3000.0,0.0001615,2]
[402809369,1768913442634,-3000.0,0.0001616,2]
[402809370,1768913442643,-3000.0,0.0001617,2]